fUSD/lending_fUSD_20240726
["ID","MTS","AMOUNT","RATE_DAILY","PERIOD"]
[333251889,1721985040122,-500.0,0.00010999,2]
[333251890,1721985040132,-337.35928,0.00010999,2]
[333251892,1721985040141,-646.90301,0.00010999,2]
[333251894,1721985040151,-980.98,0.00010999,2]
[333251896,1721985040162,-980.98,0.00010999,2]
[333251897,1721985040171,-980.98,0.00010999,2]
[333251899,1721985040181,-980.98,0.00010999,2]
[333251901,1721985040190,-980.98,0.00010999,2]
[333251903,1721985040200,-980.98,0.00010999,2]
[333251905,1721985040209,-980.98,0.00010999,2]
[333251906,1721985040219,-980.98,0.00010999,2]
[333251908,1721985040228,-980.98,0.00010999,2]
[333251910,1721985040238,-980.98,0.00010999,2]
[333251911,1721985040247,-980.98,0.00010999,2]
[333251912,1721985040257,-980.98,0.00010999,2]
[333251913,1721985040266,-980.98,0.00010999,2]
[333251914,1721985040276,-980.98,0.00010999,2]
[333251915,1721985040285,-980.98,0.00010999,2]
[333251916,1721985040294,-980.98,0.00010999,2]
[333251917,1721985040303,-980.98,0.00010999,2]
[333251918,1721985040312,-980.98,0.00010999,2]
[333251919,1721985040321,-980.98,0.00010999,2]
[333251920,1721985040330,-426.67185515,0.00010999,2]
[333251921,1721985040342,-554.30814485,0.00010999,2]
[333251922,1721985040351,-6456.9556692,0.00010999,2]
[333251923,1721985040360,-980.98,0.00010999,2]
[333251924,1721985040369,-980.98,0.00010999,2]
[333251925,1721985040378,-981.05816044,0.00010999,2]
[333251926,1721985040387,-8964.27741337,0.00011,2]
[333251927,1721985040398,-9459.0,0.00011,2]
[333251928,1721985040410,-79663.04388982,0.00011,2]
[333251951,1721985045643,-264.32512979,0.0001045,2]
[333251952,1721985045652,-153.43708463,0.00010999,2]
[333251953,1721985045662,-462.21158478,0.00011,2]
[333251954,1721985045688,-432.00902886,0.00011,2]
[333251955,1721985045758,-557.8322401,0.00011,2]
[333251956,1721985046492,-8786.32937079,0.00011,2]
[333251957,1721985046503,-528.67233766,0.00011,2]
[333251958,1721985046515,-3350.55096394,0.00011,2]
[333251960,1721985183965,503.36,0.0001337,30]
[333251972,1721985807852,461.41,0.0001337,30]
[333251977,1721986189804,217.44,0.000163,120]
[333251983,1721986232073,-437.36,8.245e-05,2]
[333251984,1721986232082,-359.88074679,0.0001,2]
[333251986,1721986232092,-77.75925321,0.0001,2]
[333251990,1721986232149,-1172.24074679,0.0001,2]
[333251991,1721986232158,-1406.83,0.00010047,2]
[333251992,1721986232167,-250.0,0.0001012,2]
[333251993,1721986232179,-160.0,0.00010147,2]
[333251994,1721986232188,-904.0,0.00010253,2]
[333251995,1721986232198,-370.438834,0.00010456,2]
[333251996,1721986232207,-437.36,0.00010509,2]
[333251997,1721986232217,-284.0140146,0.0001078,2]
[333251998,1721986232227,-300.0,0.00010879,2]
[333251999,1721986232236,-300.0,0.00010879,2]
[333252000,1721986232246,-1154.51842109,0.0001088,2]
[333252001,1721986232259,-476.73648322,0.0001088,2]
[333252002,1721986232272,-4909.06975897,0.0001088,2]
[333252003,1721986232281,-1319.52358343,0.0001089,2]
[333252004,1721986232297,-479.3635473,0.0001089,2]
[333252005,1721986232312,-920.27437117,0.0001089,2]
[333252023,1721986237799,-361.2818747,0.0001089,2]
[333252025,1721986237939,-3023.4166,0.0001089,2]
[333252026,1721986238087,-517.87149997,0.0001089,2]
[333252051,1721986239745,-777.9999999,0.0001089,2]
[333252052,1721986239820,-252.34804451,0.0001089,2]
[333252053,1721986240027,-118009.92047902,0.0001089,2]
[333252054,1721986240036,-9535.50114619,0.00010899,2]
[333252055,1721986240045,-7500.0,0.000109,2]
[333252056,1721986240055,-10000.0,0.000109,2]
[333252057,1721986240064,-181.4307852,0.000109,2]
[333252058,1721986240074,-500.0,0.00010912,2]
[333252059,1721986240083,-200.0,0.00010959,2]
[333252060,1721986240093,-670.98,0.00010959,2]
[333252061,1721986240102,-2527.98840599,0.00010997,2]
[333252063,1721986240111,-508.08602234,0.00010998,2]
[333252065,1721986240120,-519.57110336,0.00010998,2]
[333252067,1721986240129,-507.40710143,0.00010998,2]
[333252069,1721986240138,-505.55196652,0.00010998,2]
[333252071,1721986240147,-545.80246894,0.00010998,2]
[333252073,1721986240156,-508.01741098,0.00010998,2]
[333252075,1721986240165,-510.711478,0.00010998,2]
[333252077,1721986240175,-511.71094005,0.00010998,2]
[333252079,1721986240188,-512.81761002,0.00010998,2]
[333252080,1721986240196,-509.64826132,0.00010998,2]
[333252082,1721986240206,-512.53635288,0.00010998,2]
[333252084,1721986240215,-509.15391504,0.00010998,2]
[333252086,1721986240225,-512.74430903,0.00010998,2]
[333252088,1721986240234,-544.00226499,0.00010998,2]
[333252090,1721986240246,-573.87559399,0.00010998,2]
[333252092,1721986240258,-521.07736609,0.00010998,2]
[333252094,1721986240268,-512.38783198,0.00010998,2]
[333252096,1721986240277,-536.72489711,0.00010998,2]
[333252098,1721986240287,-556.32883068,0.00010998,2]
[333252100,1721986240296,-506.35093434,0.00010998,2]
[333252102,1721986240305,-508.51853885,0.00010998,2]
[333252104,1721986240314,-500.0,0.00010998,2]
[333252106,1721986240324,-507.46192157,0.00010998,2]
[333252108,1721986240333,-508.40546057,0.00010998,2]
[333252110,1721986240342,-512.58350933,0.00010998,2]
[333252112,1721986240351,-500.0,0.00010998,2]
[333252114,1721986240360,-508.93292866,0.00010998,2]
[333252116,1721986240370,-505.8805806,0.00010998,2]
[333252118,1721986240379,-500.0,0.00010998,2]
[333252120,1721986240389,-519.06606168,0.00010998,2]
[333252122,1721986240398,-500.0,0.00010998,2]
[333252124,1721986240407,-507.86513517,0.00010998,2]
[333252126,1721986240416,-500.0,0.00010998,2]
[333252128,1721986240426,-506.45199929,0.00010998,2]
[333252130,1721986240435,-511.14932231,0.00010998,2]
[333252132,1721986240444,-513.41855361,0.00010998,2]
[333252134,1721986240454,-500.0,0.00010998,2]
[333252136,1721986240463,-511.28647923,0.00010998,2]
[333252137,1721986240472,-551.44,0.00010998,2]
[333252138,1721986240482,-514.97427654,0.00010998,2]
[333252139,1721986240492,-508.04135579,0.00010998,2]
[333252140,1721986240502,-549.60616879,0.00010998,2]
[333252141,1721986240510,-506.82760563,0.00010998,2]
[333252142,1721986240520,-507.42901936,0.00010998,2]
[333252143,1721986240530,-510.13521122,0.00010998,2]
[333252144,1721986240539,-460.47360308,0.00010998,2]
[333252145,1721986240548,-506.97903379,0.00010998,2]
[333252146,1721986240558,-508.56359134,0.00010998,2]
[333252147,1721986240568,-511.48505184,0.00010998,2]
[333252148,1721986240579,-515.88476969,0.00010998,2]
[333252149,1721986240589,-639.88554991,0.00010998,2]
[333252150,1721986240599,-515.59557737,0.00010998,2]
[333252151,1721986240609,-545.7057247,0.00010998,2]
[333252152,1721986240619,-506.6639832,0.00010998,2]
[333252153,1721986240629,-540.04803531,0.00010998,2]
[333252154,1721986240638,-500.0,0.00010998,2]
[333252155,1721986240648,-512.7399393,0.00010998,2]
[333252156,1721986240659,-564.7119713,0.00010998,2]
[333252157,1721986240668,-507.49673536,0.00010998,2]
[333252158,1721986240677,-550.37578486,0.00010998,2]
[333252159,1721986240687,-500.0,0.00010998,2]
[333252160,1721986240696,-508.60112205,0.00010998,2]
[333252161,1721986240706,-508.88114125,0.00010998,2]
[333252162,1721986240715,-648.8464255,0.00010998,2]
[333252163,1721986240724,-512.58868414,0.00010998,2]
[333252164,1721986240734,-506.58199165,0.00010998,2]
[333252165,1721986240744,-512.91203262,0.00010998,2]
[333252166,1721986240754,-509.23346603,0.00010998,2]
[333252167,1721986240764,-507.19097969,0.00010998,2]
[333252168,1721986240773,-506.41430713,0.00010998,2]
[333252169,1721986240784,-505.7735764,0.00010998,2]
[333252170,1721986240793,-508.07512992,0.00010998,2]
[333252171,1721986240804,-514.72621159,0.00010998,2]
[333252172,1721986240815,-500.0,0.00010998,2]
[333252173,1721986240824,-509.1276066,0.00010998,2]
[333252174,1721986240834,-248.2777049,0.00010998,2]
[333252175,1721986240844,-505.51463592,0.00010998,2]
[333252176,1721986240853,-548.59454311,0.00010998,2]
[333252177,1721986240862,-556.22882702,0.00010998,2]
[333252178,1721986240871,-514.22767422,0.00010998,2]
[333252179,1721986240880,-506.73779689,0.00010998,2]
[333252180,1721986240889,-512.63903702,0.00010998,2]
[333252181,1721986240900,-514.40484683,0.00010998,2]
[333252182,1721986240911,-292.906086,0.00010998,2]
[333252183,1721986240920,-505.87990587,0.00010998,2]
[333252184,1721986240929,-509.1315072,0.00010998,2]
[333252185,1721986240939,-511.19999214,0.00010998,2]
[333252186,1721986240948,-506.47726592,0.00010998,2]
[333252187,1721986240957,-511.74075548,0.00010998,2]
[333252188,1721986240967,-510.25290728,0.00010998,2]
[333252189,1721986240976,-519.71002234,0.00010998,2]
[333252190,1721986240985,-514.6893726,0.00010998,2]
[333252191,1721986240995,-506.75580635,0.00010998,2]
[333252192,1721986241004,-641.67786556,0.00010998,2]
[333252193,1721986241014,-150.0,0.00010998,2]
[333252194,1721986241023,-500.0,0.00010998,2]
[333252195,1721986241032,-508.12174435,0.00010998,2]
[333252196,1721986241041,-352.25257146,0.00010998,2]
[333252197,1721986241050,-517.93236497,0.00010998,2]
[333252198,1721986241059,-521.46821077,0.00010998,2]
[333252199,1721986241068,-505.22334326,0.00010998,2]
[333252200,1721986241077,-512.37909101,0.00010998,2]
[333252201,1721986241087,-520.53489328,0.00010998,2]
[333252202,1721986241096,-518.66610883,0.00010998,2]
[333252203,1721986241105,-519.05628483,0.00010998,2]
[333252204,1721986241114,-649.01612143,0.00010998,2]
[333252205,1721986241123,-509.32293331,0.00010998,2]
[333252206,1721986241132,-514.03213986,0.00010998,2]
[333252207,1721986241142,-52437.4164699,0.00010998,2]
[333252208,1721986241152,-500.0,0.00010998,2]
[333252209,1721986241162,-528.89205331,0.00010998,2]
[333252210,1721986241172,-507.74715736,0.00010998,2]
[333252211,1721986241183,-508.55371028,0.00010998,2]
[333252212,1721986241192,-101.31381076,0.00010998,2]
[333252225,1721986242816,-180.56474951,0.00010998,2]
[333252226,1721986242826,-509.31226449,0.00010998,2]
[333252227,1721986242835,-505.56032863,0.00010998,2]
[333252228,1721986242845,-518.91418821,0.00010998,2]
[333252229,1721986242854,-500.0,0.00010998,2]
[333252230,1721986242864,-500.0,0.00010998,2]
[333252231,1721986242873,-500.0,0.00010998,2]
[333252232,1721986242883,-500.0,0.00010998,2]
[333252233,1721986242893,-507.34380031,0.00010998,2]
[333252234,1721986242902,-507.8657265,0.00010998,2]
[333252235,1721986242911,-504.50109647,0.00010998,2]
[333252236,1721986242920,-7095.3425457,0.00010998,2]
[333252237,1721986242930,-2264.64903141,0.00010998,2]
[333252238,1721986242939,-879.29563427,0.00010998,2]
[333252239,1721986242948,-704.8026189,0.00010998,2]
[333252240,1721986242957,-12520.7464796,0.00010998,2]
[333252241,1721986242966,-500.0,0.00010999,2]
[333252242,1721986242976,-587.87,0.00010999,2]
[333252243,1721986242985,-500.0,0.00010999,2]
[333252244,1721986242996,-536.13,0.00010999,2]
[333252245,1721986243005,-500.0,0.00010999,2]
[333252248,1721986243231,-500.0,0.00010999,2]
[333252249,1721986243241,-500.0,0.00010999,2]
[333252250,1721986243252,-167.58934471,0.00010999,2]
[333252251,1721986243262,-505.93462439,0.00010999,2]
[333252252,1721986243271,-500.0,0.00010999,2]
[333252253,1721986243280,-508.80189016,0.00010999,2]
[333252254,1721986243290,-518.49913796,0.00010999,2]
[333252255,1721986243299,-510.63039489,0.00010999,2]
[333252256,1721986243309,-510.31064233,0.00010999,2]
[333252257,1721986243319,-382.64753843,0.00010999,2]
[333252258,1721986243328,-500.0,0.00010999,2]
[333252259,1721986243339,-311.9537965,0.00010999,2]
[333252260,1721986243348,-509.35999042,0.00010999,2]
[333252262,1721986243358,-506.66462,0.00010999,2]
[333252264,1721986243368,-500.0,0.00010999,2]
[333252265,1721986243378,-645.82985514,0.00010999,2]
[333252266,1721986243387,-516.40844388,0.00010999,2]
[333252267,1721986243397,-515.36279112,0.00010999,2]
[333252268,1721986243407,-531.66947627,0.00010999,2]
[333252269,1721986243417,-515.71490882,0.00010999,2]
[333252270,1721986243426,-512.73911036,0.00010999,2]
[333252271,1721986243436,-515.08093811,0.00010999,2]
[333252272,1721986243447,-440.84649604,0.00010999,2]
[333252273,1721986243457,-500.0,0.00010999,2]
[333252274,1721986243467,-500.0,0.00010999,2]
[333252275,1721986243477,-340.03568352,0.00010999,2]
[333252276,1721986243488,-511.06882901,0.00010999,2]
[333252277,1721986243499,-500.0,0.00010999,2]
[333252278,1721986243508,-505.30798777,0.00010999,2]
[333252279,1721986243518,-515.64535822,0.00010999,2]
[333252280,1721986243528,-584.64678059,0.00010999,2]
[333252281,1721986243538,-643.15,0.00010999,2]
[333252282,1721986243547,-539.31966151,0.00010999,2]
[333252283,1721986243557,-508.34170581,0.00010999,2]
[333252284,1721986243567,-506.58400206,0.00010999,2]
[333252285,1721986243576,-512.65396772,0.00010999,2]
[333252286,1721986243586,-519.42325571,0.00010999,2]
[333252287,1721986243597,-507.77159478,0.00010999,2]
[333252288,1721986243606,-500.0,0.00010999,2]
[333252289,1721986243616,-500.0,0.00010999,2]
[333252290,1721986243626,-509.1805902,0.00010999,2]
[333252291,1721986243635,-520.09894186,0.00010999,2]
[333252292,1721986243645,-511.01135469,0.00010999,2]
[333252293,1721986243655,-500.0,0.00010999,2]
[333252294,1721986243664,-507.94066393,0.00010999,2]
[333252295,1721986243674,-429.2435724,0.00010999,2]
[333252296,1721986243683,-500.0,0.00010999,2]
[333252297,1721986243692,-582.75847422,0.00010999,2]
[333252298,1721986243702,-500.0,0.00010999,2]
[333252299,1721986243711,-517.46072831,0.00010999,2]
[333252300,1721986243720,-500.0,0.00010999,2]
[333252301,1721986243730,-269.03585796,0.00010999,2]
[333252302,1721986243739,-500.0,0.00010999,2]
[333252303,1721986243749,-340.49763434,0.00010999,2]
[333252304,1721986243758,-500.0,0.00010999,2]
[333252305,1721986243767,-535.17512834,0.00010999,2]
[333252306,1721986243777,-506.5656668,0.00010999,2]
[333252307,1721986243787,-504.16468021,0.00010999,2]
[333252308,1721986243796,-506.97511285,0.00010999,2]
[333252309,1721986243806,-500.0,0.00010999,2]
[333252310,1721986243815,-373.8598515,0.00010999,2]
[333252311,1721986243824,-500.0,0.00010999,2]
[333252312,1721986243834,-500.0,0.00010999,2]
[333252313,1721986243843,-358.25622889,0.00010999,2]
[333252314,1721986243852,-554.76724818,0.00010999,2]
[333252315,1721986243862,-500.0,0.00010999,2]
[333252316,1721986243871,-535.35,0.00010999,2]
[333252317,1721986243881,-512.19065863,0.00010999,2]
[333252318,1721986243890,-500.0,0.00010999,2]
[333252319,1721986243900,-500.0,0.00010999,2]
[333252320,1721986243909,-268.15397206,0.00010999,2]
[333252321,1721986243919,-500.0,0.00010999,2]
[333252322,1721986243929,-195.4890769,0.00010999,2]
[333252323,1721986243938,-500.0,0.00010999,2]
[333252324,1721986243948,-500.0,0.00010999,2]
[333252325,1721986243957,-249.17868429,0.00010999,2]
[333252326,1721986243967,-642.56730924,0.00010999,2]
[333252327,1721986243977,-992.96,0.00010999,2]
[333252328,1721986243987,-992.96,0.00010999,2]
[333252329,1721986243997,-992.96,0.00010999,2]
[333252330,1721986244007,-992.96,0.00010999,2]
[333252331,1721986244016,-992.96,0.00010999,2]
[333252332,1721986244026,-992.96,0.00010999,2]
[333252333,1721986244036,-992.96,0.00010999,2]
[333252334,1721986244046,-992.96,0.00010999,2]
[333252335,1721986244056,-992.96,0.00010999,2]
[333252336,1721986244066,-992.96,0.00010999,2]
[333252337,1721986244076,-992.96,0.00010999,2]
[333252338,1721986244086,-992.96,0.00010999,2]
[333252339,1721986244095,-992.96,0.00010999,2]
[333252340,1721986244105,-992.96,0.00010999,2]
[333252341,1721986244115,-992.96,0.00010999,2]
[333252342,1721986244124,-992.96,0.00010999,2]
[333252343,1721986244134,-992.96,0.00010999,2]
[333252344,1721986244144,-992.96,0.00010999,2]
[333252345,1721986244154,-992.96,0.00010999,2]
[333252346,1721986244164,-992.96,0.00010999,2]
[333252347,1721986244175,-992.96,0.00010999,2]
[333252348,1721986244190,-992.96,0.00010999,2]
[333252349,1721986244199,-992.96,0.00010999,2]
[333252350,1721986244210,-993.08,0.00010999,2]
[333252351,1721986244219,-500.0,0.00010999,2]
[333252352,1721986244230,-500.0,0.00010999,2]
[333252353,1721986244239,-500.0,0.00010999,2]
[333252354,1721986244251,-500.0,0.00010999,2]
[333252355,1721986244260,-500.0,0.00010999,2]
[333252356,1721986244270,-500.0,0.00010999,2]
[333252357,1721986244279,-199.27,0.00010999,2]
[333252358,1721986244289,-500.0,0.00010999,2]
[333252359,1721986244298,-500.0,0.00010999,2]
[333252360,1721986244307,-632.07602874,0.00010999,2]
[333252361,1721986244316,-508.51343628,0.00010999,2]
[333252362,1721986244325,-162.22,0.00010999,2]
[333252363,1721986244334,-482.99915459,0.00010999,2]
[333252364,1721986244345,-500.0,0.00010999,2]
[333252365,1721986244354,-500.0,0.00010999,2]
[333252366,1721986244364,-329.9451813,0.00010999,2]
[333252367,1721986244374,-268.01444964,0.00010999,2]
[333252368,1721986244384,-506.1357568,0.00010999,2]
[333252369,1721986244394,-500.0,0.00010999,2]
[333252370,1721986244404,-500.0,0.00010999,2]
[333252371,1721986244414,-272.49951583,0.00010999,2]
[333252372,1721986244424,-500.0,0.00010999,2]
[333252373,1721986244434,-250.04104152,0.00010999,2]
[333252374,1721986244444,-500.0,0.00010999,2]
[333252375,1721986244453,-500.0,0.00010999,2]
[333252376,1721986244463,-174.96150059,0.00010999,2]
[333252377,1721986244473,-567.48295003,0.00010999,2]
[333252378,1721986244483,-500.0,0.00010999,2]
[333252379,1721986244492,-173.90573448,0.00010999,2]
[333252380,1721986244502,-500.0,0.00010999,2]
[333252381,1721986244511,-544.98960425,0.00010999,2]
[333252382,1721986244521,-440.62522862,0.00010999,2]
[333252383,1721986244536,-59.37477138,0.00010999,2]
[333252384,1721986244545,-500.0,0.00010999,2]
[333252385,1721986244555,-182.64,0.00010999,2]
[333252386,1721986244564,-500.0,0.00010999,2]
[333252387,1721986244574,-190.20469783,0.00010999,2]
[333252388,1721986244583,-506.25324455,0.00010999,2]
[333252389,1721986244593,-500.0,0.00010999,2]
[333252390,1721986244602,-417.13510929,0.00010999,2]
[333252391,1721986244612,-500.0,0.00010999,2]
[333252392,1721986244621,-500.0,0.00010999,2]
[333252393,1721986244631,-500.0,0.00010999,2]
[333252394,1721986244640,-463.44943341,0.00010999,2]
[333252395,1721986244649,-625.49109561,0.00010999,2]
[333252396,1721986244659,-529.34582202,0.00010999,2]
[333252397,1721986244668,-500.0,0.00010999,2]
[333252398,1721986244677,-298.19498832,0.00010999,2]
[333252399,1721986244687,-28.55157526,0.00010999,2]
[333252400,1721986244698,-400.30481951,0.00010999,2]
[333252401,1721986244710,-71.14360523,0.00010999,2]
[333252402,1721986244720,-428.85639477,0.00010999,2]
[333252423,1721986245853,-20.18166484,0.00010999,2]
[333252424,1721986245863,-500.0,0.00010999,2]
[333252425,1721986245873,-330.58634472,0.00010999,2]
[333252426,1721986245882,-500.0,0.00010999,2]
[333252427,1721986245892,-500.0,0.00010999,2]
[333252428,1721986245902,-500.0,0.00010999,2]
[333252429,1721986245912,-372.25480686,0.00010999,2]
[333252430,1721986245921,-150.0,0.00010999,2]
[333252431,1721986245930,-186.25381511,0.00010999,2]
[333252432,1721986245940,-513.4389602,0.00010999,2]
[333252433,1721986245949,-283.02404512,0.00010999,2]
[333252434,1721986245958,-344.98,0.00010999,2]
[333252435,1721986245968,-7720.16101187,0.00011,2]
[333252437,1721986246855,-336.785,0.00011,2]
[333252438,1721986246869,-680.89572883,0.00011,2]
[333252439,1721986246883,-11119.80009113,0.00011,2]
[333252440,1721986246908,-162575.25778777,0.00011,2]
[333252441,1721986246920,-150.0,0.00011,2]
[333252442,1721986246931,-150.0,0.00011,2]
[333252443,1721986246942,-1995.0,0.00011,2]
[333252444,1721986246954,-806.376,0.00011,2]
[333252445,1721986246965,-198.482,0.00011,2]
[333252446,1721986246977,-1254.0,0.00011,2]
[333252447,1721986246987,-1664.0,0.00011,2]
[333252448,1721986246999,-1829.0,0.00011,2]
[333252449,1721986247009,-621.0,0.00011,2]
[333252450,1721986247020,-810.0,0.00011,2]
[333252451,1721986247029,-450.0,0.00011,2]
[333252452,1721986247040,-445.0,0.00011,2]
[333252453,1721986247051,-176727.24804537,0.00011,2]
[333252454,1721986247068,-20000.12349014,0.00011,2]
[333252455,1721986247083,-7056.8,0.00011,2]
[333252456,1721986247096,-635.84286283,0.00011,2]
[333252457,1721986456389,422.95,0.0001337,30]
[333252459,1721986961853,387.7,0.0001337,30]
[333252467,1721987431921,-393.62,8.374e-05,2]
[333252469,1721987431931,-373.08047964,9.999e-05,2]
[333252471,1721987431944,-674.57705105,9.999e-05,2]
[333252474,1721987431960,-238.34246931,9.999e-05,2]
[333252476,1721987431970,-300.0,9.999e-05,2]
[333252478,1721987431979,-193.75897223,0.0001,2]
[333252480,1721987431992,-676.1,0.0001,2]
[333252482,1721987432004,-3094.21845334,0.0001,2]
[333252488,1721987432043,-3371.87191,0.0001,2]
[333252495,1721987432177,-995.04452187,0.0001,2]
[333252496,1721987432192,-36803.46112922,0.0001,2]
[333252497,1721987432202,-250.0,0.00010083,2]
[333252498,1721987432212,-250.0,0.00010152,2]
[333252499,1721987432222,-1000.0,0.00010248,2]
[333252500,1721987432232,-393.62,0.00010638,2]
[333252501,1721987432242,-150.0,0.0001074,2]
[333252502,1721987432252,-284.0140146,0.0001078,2]
[333252503,1721987432262,-150.0,0.00010825,2]
[333252504,1721987432274,-5077.4187,0.000109,2]
[333252505,1721987432284,-7305.2765,0.000109,2]
[333252506,1721987432294,-181.52425507,0.000109,2]
[333252507,1721987432305,-200.0,0.00010959,2]
[333252508,1721987432314,-500.0,0.00010997,2]
[333252509,1721987432324,-518.42,0.00010997,2]
[333252510,1721987432334,-500.0,0.00010999,2]
[333252512,1721987432344,-339.98557193,0.00010999,2]
[333252514,1721987432354,-518.42,0.00010999,2]
[333252516,1721987432363,-518.42,0.00010999,2]
[333252518,1721987432373,-518.42,0.00010999,2]
[333252520,1721987432383,-518.42,0.00010999,2]
[333252522,1721987432392,-518.42,0.00010999,2]
[333252524,1721987432402,-518.42,0.00010999,2]
[333252526,1721987432411,-518.42,0.00010999,2]
[333252528,1721987432421,-518.42,0.00010999,2]
[333252530,1721987432430,-518.42,0.00010999,2]
[333252532,1721987432440,-518.42,0.00010999,2]
[333252534,1721987432449,-518.42,0.00010999,2]
[333252536,1721987432459,-518.42,0.00010999,2]
[333252538,1721987432468,-518.42,0.00010999,2]
[333252540,1721987432478,-518.42,0.00010999,2]
[333252542,1721987432489,-518.42,0.00010999,2]
[333252544,1721987432498,-518.42,0.00010999,2]
[333252546,1721987432508,-518.42,0.00010999,2]
[333252548,1721987432517,-518.42,0.00010999,2]
[333252550,1721987432528,-518.42,0.00010999,2]
[333252552,1721987432540,-518.42,0.00010999,2]
[333252554,1721987432549,-518.42,0.00010999,2]
[333252556,1721987432559,-518.42,0.00010999,2]
[333252558,1721987432570,-518.46432616,0.00010999,2]
[333252560,1721987432580,-420.0,0.00010999,2]
[333252562,1721987432589,-395.747,0.00011,2]
[333252564,1721987432599,-1325.489,0.00011,2]
[333252566,1721987432610,-1361.627,0.00011,2]
[333252568,1721987432621,-150.0,0.00011,2]
[333252570,1721987432630,-618773.63392551,0.00011,2]
[333252572,1721987432643,-7767.54302045,0.00011,2]
[333252574,1721987432655,-1518361.52648172,0.00011,2]
[333252576,1721987432667,-814.53364837,0.00011,2]
[333252579,1721987432679,-898.17683684,0.00011,2]
[333252581,1721987432694,-752.35031756,0.00011,2]
[333252583,1721987432706,-2871.78515676,0.00011,2]
[333252584,1721987432997,-1533.16988502,0.00011,2]
[333252585,1721987433009,-10808.08059513,0.00011,2]
[333252586,1721987433020,-1163.71309333,0.00011,2]
[333252587,1721987433033,-2101.31285773,0.00011,2]
[333252597,1721987438022,-326.66,0.0001099,2]
[333252598,1721987438034,-22.99,0.0001099,2]
[333252599,1721987438043,-349.65,0.0001099,2]
[333252600,1721987438052,-273.34634802,0.0001099,2]
[333252601,1721987438139,-76.30365198,0.0001099,2]
[333252602,1721987438148,-349.65,0.0001099,2]
[333252603,1721987438158,-349.65,0.0001099,2]
[333252604,1721987438168,-349.65,0.0001099,2]
[333252605,1721987438177,-349.65,0.0001099,2]
[333252606,1721987438186,-349.65,0.0001099,2]
[333252607,1721987438195,-349.65,0.0001099,2]
[333252608,1721987438205,-349.65,0.0001099,2]
[333252609,1721987438215,-349.65,0.0001099,2]
[333252610,1721987438224,-349.65,0.0001099,2]
[333252611,1721987438233,-349.65,0.0001099,2]
[333252612,1721987438242,-349.65,0.0001099,2]
[333252613,1721987438251,-349.65,0.0001099,2]
[333252614,1721987438261,-349.65,0.0001099,2]
[333252615,1721987438270,-349.65,0.0001099,2]
[333252616,1721987438279,-349.65,0.0001099,2]
[333252617,1721987438289,-349.65,0.0001099,2]
[333252618,1721987438300,-349.65,0.0001099,2]
[333252619,1721987438310,-349.65,0.0001099,2]
[333252620,1721987438319,-349.65,0.0001099,2]
[333252621,1721987438329,-349.65,0.0001099,2]
[333252622,1721987438340,-349.65,0.0001099,2]
[333252623,1721987438349,-349.65,0.0001099,2]
[333252624,1721987438359,-349.65,0.0001099,2]
[333252625,1721987438369,-349.65,0.0001099,2]
[333252626,1721987438378,-349.65,0.0001099,2]
[333252627,1721987438387,-349.65,0.0001099,2]
[333252628,1721987438397,-349.65,0.0001099,2]
[333252629,1721987438407,-19161.53473254,0.00011,2]
[333252630,1721987438426,-349.65,0.0001099,2]
[333252631,1721987438435,-851.8216007,0.00011,2]
[333252632,1721987438446,-1143.36125422,0.00011,2]
[333252633,1721987438712,-157627.52403975,0.00011,2]